fUST/lending_fUST_20250306
["ID","MTS","AMOUNT","RATE_DAILY","PERIOD"]
[355541459,1741248643512,-500.0,0.00037999,15]
[355541461,1741248643522,-300.0,0.00037999,15]
[355541463,1741248643532,-388.33996822,0.00037999,15]
[355541465,1741248643541,-170.59877958,0.00037999,15]
[355541467,1741248643552,-500.0,0.00037999,15]
[355541468,1741248643561,-500.0,0.00037999,15]
[355541469,1741248643571,-500.0,0.00037999,2]
[355541470,1741248643581,-500.0,0.00037999,15]
[355541471,1741248643590,-500.0,0.00037999,15]
[355541472,1741248643599,-500.0,0.00037999,15]
[355541473,1741248643611,-500.0,0.00037999,2]
[355541474,1741248643623,-299.23,0.00037999,2]
[355541475,1741248643633,-500.0,0.00037999,15]
[355541476,1741248643643,-500.0,0.00037999,2]
[355541477,1741248643654,-500.0,0.00037999,15]
[355541478,1741248643664,-376.50899931,0.00037999,15]
[355541479,1741248643673,-620.57841712,0.00037999,2]
[355541480,1741248643683,-500.0,0.00037999,15]
[355541481,1741248643693,-5319.76466923,0.00037999,5]
[355541482,1741248643703,-34202.94473096,0.00038,5]
[355541483,1741248643712,-27545.33370857,0.00038,120]
[355541484,1741248643724,-5083.49999785,0.00038,120]
[355541485,1741248643778,-4564.9805696,0.00038,120]
[355541718,1741248646288,-150.1375215,0.0003737,30]
[355541720,1741248646297,-150.1375215,0.00037644,30]
[355541722,1741248646307,-150.1375215,0.00037918,30]
[355541724,1741248646316,-27005.08043387,0.00038,120]
[355541726,1741248646327,-4566.25,0.00038,120]
[355541873,1741248742376,500.0,0.00023,10]
[355541874,1741248742724,500.0,0.00023,10]
[355541875,1741248743093,500.0,0.00023,10]
[355541876,1741248743489,500.0,0.00023,10]
[355541877,1741248743885,500.0,0.00023,10]
[355541878,1741248744315,500.0,0.00023,10]
[355541879,1741248744708,500.0,0.00023,10]
[355541880,1741248745072,500.0,0.00023,10]
[355541881,1741248745639,705.38174846,0.00023,10]
[355541882,1741248753139,500.0,0.00023,10]
[355541883,1741248753500,500.0,0.00023,10]
[355541884,1741248753872,905.35375741,0.00023,10]
[355541894,1741249640515,-198.07233014,0.00026799,2]
[355541895,1741249640537,-300.0,0.00026999,2]
[355541896,1741249640560,-500.0,0.00027,2]
[355541897,1741249640581,-500.0,0.00027,2]
[355541898,1741249640602,-500.0,0.00027,2]
[355541899,1741249640624,-500.0,0.00027,2]
[355541900,1741249640646,-500.0,0.00027,2]
[355541901,1741249640668,-500.0,0.00027,2]
[355541902,1741249640704,-500.0,0.00027,2]
[355541903,1741249640729,-500.0,0.00027,2]
[355541904,1741249640752,-500.0,0.00027,2]
[355541905,1741249640775,-500.0,0.00027,2]
[355541906,1741249640797,-500.0,0.00027,2]
[355541907,1741249640819,-500.0,0.00027,2]
[355541908,1741249640841,-500.0,0.00027,2]
[355541909,1741249640863,-500.0,0.00027,2]
[355541910,1741249640885,-566.18175505,0.00027,2]
[355541911,1741249640909,-250.0,0.00028537,2]
[355541912,1741249640933,-420.0,0.00029189,2]
[355541913,1741249640955,-587.0,0.00031557,2]
[355541914,1741249640978,-10678.74591481,0.00032892,2]
[355541918,1741249715576,4001.98801367,0.00022,2]
[355541920,1741249747465,-10000.0,0.00032892,2]
[355541921,1741249761614,-3767.08964277,0.00032892,2]
[355541961,1741249832417,-404.6312925,0.00030792,2]
[355541963,1741249832427,-454.16444242,0.00032892,2]
[355541965,1741249832437,-203.38747373,0.00033296,6]
[355541967,1741249832447,-190.369522,0.00033397,2]
[355541969,1741249832457,-300.579628,0.00033473,2]
[355541971,1741249832466,-722.26615289,0.000339,6]
[355541973,1741249832475,-404.6312925,0.00035792,2]
[355541975,1741249832485,-197.54717,0.0003589,2]
[355541977,1741249832494,-5826.72471805,0.00037,5]
[355541979,1741249832507,-160.0,0.00037008,2]
[355541981,1741249832517,-500.0,0.00037414,120]
[355541984,1741249832536,-194.73274708,0.000378,2]
[355541986,1741249832547,-185.91503157,0.000379,2]
[355541988,1741249832556,-160.0,0.00037957,2]
[355541990,1741249832567,-5963.34325672,0.0003799,3]
[355541993,1741249832579,-500.0,0.00037999,15]
[355541995,1741249832590,-500.0,0.00037999,15]
[355541997,1741249832599,-500.0,0.00037999,2]
[355541999,1741249832610,-500.0,0.00037999,15]
[355542001,1741249832619,-500.0,0.00037999,2]
[355542003,1741249832629,-650.0,0.00037999,2]
[355542005,1741249832639,-500.0,0.00037999,15]
[355542007,1741249832648,-500.0,0.00037999,15]
[355542009,1741249832658,-500.0,0.00037999,2]
[355542011,1741249832668,-258.998,0.00037999,15]
[355542013,1741249832678,-500.0,0.00037999,2]
[355542015,1741249832687,-500.0,0.00037999,2]
[355542017,1741249832697,-500.0,0.00037999,2]
[355542019,1741249832707,-500.0,0.00037999,2]
[355542021,1741249832717,-500.0,0.00037999,2]
[355542023,1741249832726,-500.0,0.00037999,2]
[355542025,1741249832736,-500.0,0.00037999,2]
[355542027,1741249832746,-500.0,0.00037999,2]
[355542029,1741249832756,-500.0,0.00037999,2]
[355542031,1741249832766,-500.0,0.00037999,2]
[355542034,1741249832775,-500.0,0.00037999,2]
[355542036,1741249832785,-500.0,0.00037999,2]
[355542038,1741249832795,-500.0,0.00037999,2]
[355542040,1741249832804,-500.0,0.00037999,2]
[355542042,1741249832815,-500.0,0.00037999,2]
[355542044,1741249832825,-500.0,0.00037999,2]
[355542045,1741249832834,-500.0,0.00037999,2]
[355542046,1741249832843,-500.0,0.00037999,2]
[355542047,1741249832852,-500.0,0.00037999,2]
[355542048,1741249832862,-500.0,0.00037999,2]
[355542049,1741249832871,-503.13087684,0.00037999,2]
[355542050,1741249832880,-500.0,0.00037999,2]
[355542051,1741249832889,-500.0,0.00037999,2]
[355542052,1741249832899,-500.0,0.00037999,2]
[355542053,1741249832908,-500.0,0.00037999,2]
[355542054,1741249832917,-500.0,0.00037999,2]
[355542055,1741249832926,-500.0,0.00037999,2]
[355542056,1741249832936,-500.0,0.00037999,2]
[355542057,1741249832945,-500.0,0.00037999,15]
[355542058,1741249832954,-500.0,0.00037999,15]
[355542059,1741249832964,-500.0,0.00037999,15]
[355542060,1741249832973,-423.37278609,0.00037999,15]
[355542061,1741249832982,-293.01,0.00037999,2]
[355542062,1741249832992,-22217.69850062,0.00038,120]
[355542063,1741249833005,-642.94357132,0.00038,120]
[355542072,1741249833135,-1200.000002,0.00038,120]
[355542492,1741249838301,-11690.33182475,0.00038,120]
[355542493,1741249838359,-2826.76286521,0.00038,120]
[355542494,1741249838371,-23231.49787431,0.00038,120]
[355542500,1741249838620,-9527.46298573,0.00038,120]
[355542502,1741249838632,-359.19859187,0.00038,120]
[355542517,1741249840532,-271.35708111,0.00038,120]
[355542518,1741249840546,-1174.91141472,0.00038,120]
[355542519,1741249840556,-736.23,0.00038,120]
[355542520,1741249840566,-152.76518317,0.00038,5]
[355542521,1741249840576,-500.80104602,0.00038,5]
[355542522,1741249840586,-350.2956572,0.00038,5]
[355542523,1741249840607,-155.26825834,0.00038,5]
[355542524,1741249840617,-150.1375215,0.00038219,30]
[355542525,1741249840627,-150.1375215,0.00038493,30]
[355542526,1741249840635,-45.24812523,0.000385,120]
[355542527,1741249840647,-454.75187477,0.000385,120]
[355542528,1741249840657,-150.1375215,0.00038767,30]
[355542529,1741249840666,-562.5822848,0.00038866,4]
[355542530,1741249840675,-185.91503156,0.00038923,2]
[355542531,1741249840682,-500.0,0.00039,5]
[355542532,1741249840692,-262.71328738,0.00039,5]
[355542533,1741249840707,-237.28671262,0.00039,5]
[355542534,1741249840717,-150.1375215,0.00039068,30]
[355542535,1741249840727,-190.93197411,0.0003918,5]
[355542536,1741249840739,-309.06802589,0.0003918,5]
[355542537,1741249840749,-89.00797411,0.000392,5]
[355542538,1741249840762,-410.99202589,0.000392,5]
[355542539,1741249840772,-500.0,0.000392,5]
[355542540,1741249840781,-500.0,0.000392,5]
[355542541,1741249840791,-153.0,0.00039205,30]
[355542542,1741249840801,-153.0,0.00039205,30]
[355542543,1741249840810,-153.0,0.00039205,30]
[355542544,1741249840821,-500.0,0.00039333,5]
[355542545,1741249840831,-500.0,0.00039333,5]
[355542546,1741249840840,-500.0,0.00039333,5]
[355542547,1741249840849,-500.0,0.00039333,5]
[355542548,1741249840859,-150.1375215,0.00039342,30]
[355542549,1741249840868,-293.01,0.00039369,2]
[355542550,1741249840877,-207.02048516,0.00039386,5]
[355542551,1741249840886,-500.0,0.000395,120]
[355542552,1741249840897,-221364.10356081,0.0003966,2]
[355542553,1741249840908,-42834.39333023,0.0003966,2]
[355542554,1741249840921,-793.68398546,0.0003966,2]
[355542591,1741249843567,-329.99917035,0.0003966,2]
[355542729,1741249846848,-714.03253571,0.0003966,2]
[355542769,1741249847207,-51090.3848163,0.0003966,2]
[355542831,1741249878022,1738.51539734,0.00032792,2]
[355542835,1741249950463,687.96116137,0.00023,10]
[355542836,1741249968240,1100.0,0.0002,10]
[355542906,1741251033020,-511.77074154,0.00026032,2]
[355542909,1741251033031,-406.54520144,0.000268,5]
[355542911,1741251033042,-3143.0124802,0.000269,2]
[355542913,1741251033053,-407.81616432,0.00027,2]
[355542915,1741251033065,-500.0,0.00027,2]
[355542917,1741251033077,-166.0,0.00034541,120]
[355542919,1741251033088,-400.0,0.00035259,2]
[355542921,1741251033098,-517.703646,0.00035268,2]
[355542923,1741251033109,-3062.2703119,0.00035392,2]
[355542925,1741251033119,-191.648005,0.00035481,2]
[355542927,1741251033129,-500.0,0.00035614,2]
[355542929,1741251033140,-187.669811,0.0003589,2]
[355542931,1741251033150,-160.0,0.00036492,2]
[355542955,1741251033374,-2476.9933102,0.00036955,2]
[355542957,1741251033386,-336.670268,0.0003722,2]
[355542959,1741251033396,-200.0,0.00037228,2]
[355542961,1741251033406,-910.37783066,0.0003756,2]
[355542963,1741251033416,-560.0,0.00037795,2]
[355542966,1741251033425,-268.59,0.00037999,2]
[355542968,1741251033435,-1317.1285161,0.00038866,4]
[355542970,1741251033444,-500.0,0.00038973,5]
[355542972,1741251033453,-500.0,0.00038973,5]
[355542974,1741251033463,-183.8742467,0.00038973,5]
[355542976,1741251033473,-500.0,0.00038973,5]
[355542978,1741251033483,-500.0,0.00038999,15]
[355542980,1741251033493,-169.76127645,0.00038999,15]
[355542982,1741251033502,-255.20596026,0.00038999,15]
[355542984,1741251033511,-600.32851858,0.00038999,15]
[355542986,1741251033520,-17243.92207459,0.00039,5]
[355542988,1741251033529,-1000.0,0.00039,120]
[355542990,1741251033538,-200.0,0.00039,120]
[355542992,1741251033547,-201.85128568,0.00039,120]
[355542994,1741251033557,-10691.65474003,0.00039,2]
[355542996,1741251033573,-279.83021472,0.00039,2]
[355542999,1741251033588,-10419.5247592,0.00039,2]
[355543001,1741251033599,-505.29837822,0.00039,2]
[355543003,1741251033611,-489.50548335,0.00039,2]
[355543067,1741251038503,-500.0,0.00038999,2]
[355543068,1741251038513,-350.01117175,0.00038999,15]
[355543069,1741251038523,-500.0,0.00038999,2]
[355543070,1741251038532,-200.0,0.00038999,15]
[355543071,1741251038542,-500.0,0.00038999,15]
[355543072,1741251038552,-500.0,0.00038999,2]
[355543073,1741251038562,-500.0,0.00038999,2]
[355543074,1741251038572,-239.70397178,0.00038999,15]
[355543075,1741251038582,-500.0,0.00038999,2]
[355543076,1741251038591,-500.0,0.00038999,2]
[355543077,1741251038602,-500.0,0.00038999,2]
[355543078,1741251038613,-500.0,0.00038999,2]
[355543079,1741251038622,-500.0,0.00038999,2]
[355543080,1741251038632,-500.0,0.00038999,2]
[355543081,1741251038642,-500.0,0.00038999,2]
[355543082,1741251038651,-500.0,0.00038999,2]
[355543083,1741251038660,-500.0,0.00038999,2]
[355543084,1741251038670,-500.0,0.00038999,2]
[355543085,1741251038679,-500.0,0.00038999,2]
[355543086,1741251038688,-500.0,0.00038999,2]
[355543087,1741251038698,-365.31308769,0.00038999,2]
[355543088,1741251038708,-500.0,0.00038999,2]
[355543089,1741251038718,-1001.85833385,0.00039,2]
[355543133,1741251043652,-44875.47,0.00039,2]
[355543134,1741251043665,-38376.5184165,0.00039,2]
[355543138,1741251043705,-399722.61767413,0.00039,2]
[355543140,1741251043715,-268.59,0.00039369,2]
[355543142,1741251043725,-106277.76347118,0.0003966,2]
[355543147,1741251043765,-79.72723606,0.0003966,2]
[355543149,1741251043776,-2515.1815835,0.0003966,2]
[355543165,1741251046592,-6943.62626872,0.0003966,2]
[355543169,1741251139665,115.12416134,0.00023,10]
[355543179,1741252154152,-500.0,0.00019899,2]
[355543180,1741252154172,-500.0,0.00019899,2]
[355543181,1741252154192,-500.0,0.00019899,2]
[355543182,1741252154212,-500.0,0.00019899,2]
[355543183,1741252154236,-500.0,0.00019899,2]
[355543184,1741252154257,-225.06894065,0.00019899,2]
[355543185,1741252154278,-500.0,0.000199,2]
[355543186,1741252154298,-500.0,0.000199,2]
[355543187,1741252154319,-500.0,0.000199,2]
[355543188,1741252154339,-500.0,0.000199,2]
[355543189,1741252154359,-500.0,0.000199,2]
[355543190,1741252154379,-500.0,0.000199,2]
[355543191,1741252154400,-500.0,0.000199,2]
[355543192,1741252154421,-854.79689038,0.000199,2]
[355543193,1741252154440,-507.48751748,0.000199,2]
[355543194,1741252154460,-507.48751748,0.000199,2]
[355543195,1741252154480,-606.91855377,0.000209,2]
[355543196,1741252154499,-382.86537849,0.00023,10]
[355543242,1741252232795,-300.0,0.00022999,2]
[355543244,1741252232805,-117.13462151,0.00023,10]
[355543246,1741252232814,-500.0,0.00023,10]
[355543248,1741252232824,-500.0,0.00023,10]
[355543250,1741252232835,-500.0,0.00023,10]
[355543252,1741252232845,-500.0,0.00023,10]
[355543254,1741252232854,-500.0,0.00023,10]
[355543256,1741252232863,-500.0,0.00023,10]
[355543258,1741252232874,-500.0,0.00023,10]
[355543260,1741252232883,-505.65970739,0.00023,10]
[355543262,1741252232892,-500.0,0.00023,10]
[355543264,1741252232902,-500.0,0.00023,10]
[355543266,1741252232911,-558.69423757,0.00023,10]
[355543268,1741252232921,-278.0,0.00024967,2]
[355543270,1741252232931,-606.91855377,0.000259,2]
[355543272,1741252232940,-731.34193218,0.000259,4]
[355543274,1741252232950,-606.91855377,0.000309,2]
[355543276,1741252232959,-168.335134,0.00035476,2]
[355543278,1741252232969,-178.28632,0.0003589,2]
[355543280,1741252232979,-197.22908887,0.000362,98]
[355543282,1741252232988,-160.0,0.00036575,2]
[355543284,1741252232998,-160.0,0.00038,4]
[355543286,1741252233007,-158.79452612,0.00038,10]
[355543288,1741252233017,-987.8463871,0.00038866,4]
[355543289,1741252233027,-31308.20053177,0.000389,2]
[355543293,1741252233051,-14592.66184872,0.000389,2]
[355543295,1741252233062,-2135.50000004,0.000389,2]
[355543297,1741252233074,-3946.29444898,0.000389,2]
[355543299,1741252233088,-429.08,0.000389,2]
[355543535,1741252238661,-17315.67402899,0.000389,2]
[355543536,1741252238714,-18544.31525807,0.000389,2]
[355543537,1741252238767,-13750.0,0.000389,2]
[355543538,1741252238779,-560.27903834,0.000389,2]
[355543576,1741252240976,-2879.94452023,0.000389,2]
[355543593,1741252243954,-8316.78879867,0.000389,2]
[355543644,1741252246755,-6221.26152619,0.000389,2]
[355543646,1741252246765,-200.0,0.000389,30]
[355543648,1741252246774,-200.0,0.000389,15]
[355543650,1741252246783,-200.0,0.000389,30]
[355543652,1741252246792,-200.0,0.000389,30]
[355543654,1741252246801,-200.0,0.000389,15]
[355543656,1741252246810,-200.0,0.000389,4]
[355543658,1741252246820,-200.0,0.000389,2]
[355543660,1741252246828,-160.0,0.000389,60]
[355543661,1741252246838,-160.0,0.000389,45]
[355543663,1741252246848,-154.7160879,0.00038962,30]
[355543664,1741252246858,-200.0,0.00039,2]
[355543666,1741252246868,-2450.78397565,0.0003956,2]
[355543668,1741252246878,-43703.23841026,0.0003966,2]
[355543689,1741253201135,-166.86045548,0.00023,10]
[355543692,1741253315465,1352.0,0.000145,2]
[355543693,1741253315515,24661.36871489,0.000145,2]
[355543694,1741253316443,20193.88440082,0.00015,4]
[355543736,1741253432063,-1099.45100033,0.00018,2]
[355543912,1741253440265,-2494.16975677,0.00018,2]
[355543914,1741253440275,-234.93024323,0.00022999,2]
[355544147,1741253443398,-18.54005061,0.00022999,2]
[355544289,1741254569343,-4383.41079443,0.00022999,7]
[355544328,1741254632059,-1122.91810504,0.00022999,7]
[355544331,1741254632070,-300.0,0.00022999,2]
[355544333,1741254632083,-503.23015208,0.00023,10]
[355544335,1741254632094,-758.80601894,0.00023,10]
[355544337,1741254632104,-758.80601894,0.00023,10]
[355544339,1741254632114,-758.80601894,0.00023,10]
[355544341,1741254632125,-168.335134,0.00034174,2]
[355544344,1741254632136,-155.66,0.00034526,2]
[355544346,1741254632147,-155.66,0.00034526,2]
[355544348,1741254632157,-13032.47980806,0.00034536,5]
[355544350,1741254632169,-24900.0,0.00034536,2]
[355544352,1741254632180,-2368.35318107,0.00035638,2]
[355544354,1741254632190,-155.66,0.00035728,2]
[355544356,1741254632200,-599.9118177,0.00035737,2]
[355544358,1741254632211,-169.372004,0.0003589,2]
[355544361,1741254632222,-706.96386789,0.000359,7]
[355544363,1741254632232,-2368.35318107,0.00037026,2]
[355544365,1741254632243,-155.66,0.0003799,2]
[355544367,1741254632253,-350.0,0.00038,2]
[355544369,1741254632264,-1330.40643917,0.00038,7]
[355544370,1741254632274,-1330.53920101,0.00038,7]
[355544371,1741254632285,-311.14859491,0.000381,3]
[355544372,1741254632296,-155.964704,0.00038122,4]
[355544373,1741254632307,-176.91768,0.00038122,4]
[355544375,1741254632317,-155.66,0.00038403,2]
[355544377,1741254632328,-2368.35318107,0.00038413,2]
[355544379,1741254632339,-950.0823531,0.00038866,4]
[355544381,1741254632351,-249.99999999,0.000389,15]
[355544383,1741254632361,-155.66,0.00038989,2]
[355544385,1741254632372,-155.66,0.00038989,2]
[355544387,1741254632382,-155.66,0.00038989,2]
[355544389,1741254632392,-3001.94832512,0.00038999,5]
[355544391,1741254632402,-200.0,0.00039,120]
[355544393,1741254632412,-5000.0,0.00039,120]
[355544394,1741254632422,-239.68115335,0.0003944,2]
[355544395,1741254632431,-10160.71105113,0.0003949,3]
[355544397,1741254632448,-1530.59352193,0.0003949,3]
[355544959,1741254638064,-500.0,0.0003949,3]
[355544961,1741254638078,-495.897,0.0003949,3]
[355545052,1741254640503,-1213.8492496,0.0003949,3]
[355545141,1741254643069,-1744.32299478,0.0003949,3]
[355545142,1741254643082,-7461.05671462,0.0003949,3]
[355545143,1741254643135,-7783.17745542,0.0003949,3]
[355545144,1741254643148,-2860.12076052,0.0003949,3]
[355545145,1741254643157,-500.0,0.00039497,15]
[355545146,1741254643167,-500.0,0.00039497,2]
[355545147,1741254643176,-500.0,0.00039497,15]
[355545148,1741254643186,-500.0,0.00039497,2]
[355545149,1741254643196,-500.0,0.00039497,15]
[355545150,1741254643206,-500.0,0.00039497,2]
[355545151,1741254643215,-500.0,0.00039497,2]
[355545152,1741254643225,-15.78174964,0.00039497,2]
[355545246,1741254646418,-484.21825036,0.00039497,2]
[355545247,1741254646428,-120.78174964,0.00039497,15]
[355545248,1741254646444,-379.21825036,0.00039497,15]
[355545249,1741254646455,-14.78174964,0.00039497,2]
[355545254,1741255748150,-1000.0,0.00026849,2]
[355545255,1741255748172,-1000.0,0.00032273,2]
[355545256,1741255748194,-5260.381254,0.00032273,2]
[355545299,1741255832501,-1148.2040531,0.00032273,2]
[355545300,1741255832511,-160.903403,0.0003589,2]
[355545301,1741255832523,-29349.65276668,0.00036,18]
[355545331,1741255838070,-349.80439458,0.00036,18]
[355545392,1741256803104,-169.76877007,0.00019022,2]
[355545412,1741256974079,-629.94585452,0.0001711,2]
[355545413,1741256974103,-393.77598206,0.00019022,2]
[355545414,1741256974127,-272.18596542,0.00019022,2]
[355545463,1741257032593,-318.0230459,0.000189,2]
[355545465,1741257032604,-227.81403458,0.00019022,2]
[355545493,1741257032836,-500.0,0.00019022,2]
[355545496,1741257032846,-500.0,0.00019022,2]
[355545499,1741257032855,-737.66226887,0.00019022,2]
[355545502,1741257032866,-500.0,0.00023,10]
[355545505,1741257032879,-500.0,0.00023,10]
[355545508,1741257032889,-500.0,0.00023,10]
[355545511,1741257032899,-500.0,0.00023,10]
[355545514,1741257032910,-500.0,0.00023,10]
[355545517,1741257032920,-500.0,0.00023,10]
[355545519,1741257032930,-318.0230459,0.000239,2]
[355545521,1741257032940,-248.72469906,0.000267,2]
[355545523,1741257032949,-248.72469906,0.000267,2]
[355545525,1741257032960,-318.0230459,0.000289,2]
[355545527,1741257032970,-198.0,0.00033,2]
[355545529,1741257032979,-198.0,0.00034521,2]
[355545530,1741257032990,-160.903403,0.0003589,2]
[355545532,1741257032999,-300.54283874,0.00036,18]
[355545534,1741257033010,-234.41391887,0.000362,98]
[355545537,1741257033022,-234.41391883,0.000362,98]
[355545539,1741257033033,-234.41391883,0.000362,98]
[355545540,1741257033044,-4010.0,0.000365,10]
[355545542,1741257033054,-683.39840554,0.000369,7]
[355545544,1741257033064,-800.0,0.00037,2]
[355545546,1741257033075,-1500.97416256,0.000375,5]
[355545548,1741257033085,-15138.20094132,0.000375,5]
[355545550,1741257033095,-4531.95691802,0.000375,120]
[355545553,1741257033133,-453.327,0.000375,120]
[355545706,1741257040656,-9099.99268828,0.000375,120]
[355545707,1741257040669,-15914.7233937,0.000375,120]
[355545708,1741257040680,-151.0,0.000375,14]
[355545709,1741257040690,-151.0,0.000375,14]
[355545710,1741257040701,-191.74492268,0.000379,2]
[355545711,1741257040711,-154.105718,0.0003799,14]
[355545712,1741257040720,-5062.45931219,0.0003799,3]
[355545713,1741257040731,-800.0,0.00037998,7]
[355545714,1741257040742,-1024.89353099,0.00037998,28]
[355545715,1741257040753,-800.0,0.00037998,21]
[355545716,1741257040763,-800.0,0.00037998,14]
[355545717,1741257040773,-151.0,0.00037998,14]
[355545718,1741257040785,-151.0,0.00037998,14]
[355545719,1741257040797,-151.0,0.00037998,14]
[355545720,1741257040807,-500.0,0.00037999,2]
[355545721,1741257040817,-500.0,0.00037999,15]
[355545722,1741257040827,-500.0,0.00037999,2]
[355545723,1741257040838,-500.0,0.00037999,2]
[355545724,1741257040847,-500.0,0.00037999,2]
[355545725,1741257040857,-499.10711023,0.00037999,2]
[355545726,1741257040870,-500.0,0.00037999,2]
[355545727,1741257040879,-500.0,0.00037999,2]
[355545728,1741257040890,-500.0,0.00037999,2]
[355545729,1741257040900,-500.0,0.00037999,2]
[355545730,1741257040910,-500.0,0.00037999,2]
[355545731,1741257040920,-500.0,0.00037999,2]
[355545732,1741257040930,-500.0,0.00037999,2]
[355545733,1741257040940,-155.526722,0.00037999,14]
[355545734,1741257040950,-151.0,0.00037999,14]
[355545735,1741257040960,-246.21,0.00037999,2]
[355545736,1741257040971,-151.0,0.00037999,14]
[355545737,1741257040982,-151.0,0.00037999,14]
[355545738,1741257040992,-50000.0,0.00038,120]
[355545739,1741257041002,-1330.53920101,0.00038,7]
[355545740,1741257041012,-151.0,0.00038,14]
[355545741,1741257041022,-255.81647,0.00038,14]
[355545742,1741257041039,-1330.40643917,0.00038,7]
[355545743,1741257041053,-500.0,0.000381,5]
[355545744,1741257041064,-500.0,0.000381,5]
[355545745,1741257041075,-368.33359264,0.000381,5]
[355545746,1741257041085,-500.0,0.000381,5]
[355545747,1741257041096,-220.517669,0.0003819,14]
[355545748,1741257041106,-2967.61591839,0.0003819,3]
[355545835,1741257046544,-198.0,0.00033,2]
[355545836,1741257046554,-149.15058393,0.0003819,3]
[355545931,1741258018102,-160.903403,0.0003589,2]
[355545932,1741258018124,-39.75645221,0.000359,2]
[355546014,1741258238516,-283.22845651,0.000338,2]
[355546086,1741258243657,-12.09768959,0.000338,2]
[355546087,1741258243669,-10.19784988,0.0003589,2]
[355546092,1741258452741,1045.0,0.00021,3]
[355546097,1741259207528,3761.11559918,0.0002,10]
[355546098,1741259207556,6238.88440082,0.0002,10]
[355546101,1741259357107,-196.8840974,0.000189,2]
[355546102,1741259357128,-196.8840974,0.000239,2]
[355546103,1741259357149,-300.0,0.00025204,2]
[355546104,1741259357170,-500.0,0.00025205,2]
[355546105,1741259357191,-500.0,0.00025205,2]
[355546106,1741259357212,-500.0,0.00025205,2]
[355546107,1741259357232,-500.0,0.00025205,2]
[355546108,1741259357253,-500.0,0.00025205,2]
[355546109,1741259357273,-281.0,0.00027299,2]
[355546137,1741259431947,-1084.81050534,0.00033303,2]
[355546138,1741259432000,-947.90972226,0.00033303,2]
[355546139,1741259432009,-500.0,0.0003367,2]
[355546140,1741259432019,-540.0,0.0003367,2]
[355546141,1741259432028,-583.2,0.0003367,2]
[355546142,1741259432038,-629.856,0.0003367,2]
[355546144,1741259432047,-680.24448,0.0003367,2]
[355546146,1741259432057,-734.6640384,0.0003367,2]
[355546148,1741259432066,-793.43716147,0.0003367,2]
[355546150,1741259432075,-856.91213439,0.0003367,2]
[355546151,1741259432084,-925.46510514,0.0003367,2]
[355546152,1741259432093,-1000.0,0.0003367,2]
[355546153,1741259432102,-154.24,0.0003368,2]
[355546154,1741259432111,-154.24,0.0003368,2]
[355546155,1741259432122,-154.24,0.0003368,2]
[355546156,1741259432131,-154.24,0.0003368,2]
[355546157,1741259432140,-2251.46124384,0.0003369,5]
[355546158,1741259432150,-7569.10047066,0.0003369,5]
[355546159,1741259432159,-13431.83562635,0.0003369,2]
[355546160,1741259432171,-154.24,0.00033836,2]
[355546161,1741259432180,-206.1386749,0.00033846,2]
[355546162,1741259432189,-852.7811207,0.00033997,2]
[355546163,1741259432199,-1000.0,0.00035616,2]